bitfinex/quotes_ETHUSD_20220201
["timestamp","ask_amount","ask_price","bid_price","bid_amount"]
[1643750170880,0.04881713,2787.2,2786.9,0.83459997]
[1643750171087,0.04795314,2787.2,2786.8,3.74080089]
[1643750171385,0.04795314,2787.2,2786.9,3.86231316]
[1643750172837,0.007,2787.4,2787.0,6.8]
[1643750173043,0.007,2787.4,2787.1,2.30597]
[1643750173244,0.007,2787.4,2787.1,7.16714563]
[1643750173442,0.007,2787.4,2787.1,5.16714563]
[1643750173942,0.007,2787.4,2787.2,3.34531316]
[1643750174143,0.007,2787.4,2787.3,8.29725301]
[1643750174444,0.007,2787.4,2787.3,10.05734628]
[1643750174641,0.007,2787.4,2787.3,13.40265944]
[1643750175242,0.0001,2787.7,2787.4,4.25]
[1643750175444,0.0001,2787.7,2787.6,0.12667]
[1643750175679,0.0001,2787.7,2787.6,0.64367]
[1643750175880,0.0001,2787.7,2787.6,1.5402]
[1643750176885,0.0001,2787.7,2787.6,0.64367]
[1643750179187,0.0001,2787.7,2787.6,2.71737517]
[1643750179448,0.0001,2787.7,2787.6,3.01443578]
[1643750179747,1.1082822,2788.3,2787.7,6.8074713]
[1643750179954,1.1082822,2788.3,2788.0,6.464]
[1643750180151,1.1082822,2788.3,2788.1,0.517]
[1643750180352,1.10719478,2788.3,2788.2,5.06250827]
[1643750180553,1.10719478,2788.3,2788.2,0.85617827]
[1643750180950,1.10719478,2788.3,2788.2,0.64367]
[1643750181155,1.10719478,2788.3,2788.2,0.517]
[1643750181355,1.10719478,2788.3,2788.2,0.64367]
[1643750181753,0.1792,2789.4,2788.5,6.8]
[1643750181754,0.1793,2789.4,2788.5,6.8]
[1643750181956,0.1793,2789.4,2789.2,0.01278054]
[1643750181957,0.0002,2789.4,2789.2,0.01278054]
[1643750182157,0.1792,2790.0,2789.3,0.65262149]
[1643750182354,3.88777791,2790.8,2789.3,0.65262149]
[1643750182355,2.1792,2790.6,2789.3,0.65262149]
[1643750182554,1.36477624,2790.5,2789.4,6.464]
[1643750182753,0.93897538,2790.2,2789.5,0.517]
[1643750182958,2.0,2790.1,2789.5,0.517]
[1643750183186,0.227516,2790.1,2789.5,0.517]
[1643750183389,0.04774757,2790.0,2789.5,0.517]
[1643750183590,0.1792,2789.9,2789.5,0.517]
[1643750183788,0.22637915,2789.9,2789.5,0.517]
[1643750183995,0.01250214,2790.6,2789.5,0.517]
[1643750183996,0.04661072,2789.8,2789.5,0.517]
[1643750184390,0.04661072,2789.8,2789.3,0.00895149]
[1643750184391,0.0460423,2789.7,2789.3,0.00895149]
[1643750184790,0.17948,2789.9,2788.8,0.25]
[1643750184791,0.22467388,2789.6,2788.9,0.82688794]
[1643750184990,0.04547388,2789.6,2788.7,0.517]
[1643750185191,0.22410545,2789.5,2788.7,0.517]
[1643750185391,0.17948,2789.4,2788.5,0.1792]
[1643750185693,0.04376861,2789.3,2788.5,0.1792]
[1643750185891,0.92630267,2789.0,2788.5,0.1792]
[1643750186290,0.04149491,2788.9,2788.5,0.1792]
[1643750186690,0.04092649,2788.8,2788.5,0.1792]
[1643750187134,0.21955807,2788.7,2788.5,0.1792]
[1643750187335,0.21955807,2788.7,2788.1,0.25]
[1643750187535,0.78646897,2788.3,2788.1,0.25]
[1643750187738,0.78646897,2788.3,2787.4,6.3645]
[1643750187941,0.02044482,2788.9,2787.4,5.1552]
[1643750188139,0.02044482,2788.9,2787.4,2.0]
[1643750188140,0.88729478,2788.3,2787.4,2.0]
[1643750188340,0.1793,2788.2,2787.4,2.0]
[1643750188540,0.44509789,2788.0,2787.3,0.1793]
[1643750188761,0.1793,2788.2,2787.1,0.1792]
[1643750188943,0.1793,2788.2,2787.0,0.1792]
[1643750189343,0.1793,2788.2,2786.8,0.25]
[1643750189344,0.17948,2788.1,2786.8,0.25]
[1643750189645,0.17948,2788.1,2786.6,0.1792]
[1643750189646,0.33668561,2787.3,2786.6,0.1792]
[1643750189845,0.1794,2787.3,2786.4,0.1794]
[1643750190042,0.1794,2787.3,2786.2,0.1794]
[1643750190246,0.1794,2787.6,2786.3,0.64367]
[1643750190442,2.64910382,2788.0,2786.4,0.1794]
[1643750190443,0.1794,2787.9,2786.4,0.1794]
[1643750190685,0.1794,2787.9,2786.4,0.28165247]
[1643750190886,0.371233,2787.5,2786.4,0.28165247]
[1643750191086,0.71970476,2787.0,2786.4,0.28165247]
[1643750191891,0.15514252,2787.4,2786.4,0.28165247]
[1643750192091,0.15514252,2787.4,2786.4,0.10225247]
[1643750192494,0.1794,2787.4,2786.5,3.5]
[1643750192694,0.1794,2787.4,2786.5,3.62667]
[1643750192894,2.18091515,2788.1,2786.6,0.61925247]
[1643750193093,0.82836259,2787.5,2786.6,0.61925247]
[1643750193292,0.82836259,2787.5,2786.7,0.10225247]
[1643750193495,0.362269,2787.0,2786.7,0.10225247]
[1643750193999,0.362269,2787.0,2786.4,0.1794]
[1643750194000,0.21953895,2786.5,2786.4,0.1794]
[1643750194205,0.93680786,2786.2,2786.0,0.1794]
[1643750194456,0.21953895,2786.5,2785.7,0.1794]
[1643750194654,0.21953895,2786.5,2785.6,0.1794]
[1643750196259,0.21953895,2786.5,2785.6,0.28165247]
[1643750196461,0.21953895,2786.5,2785.6,0.1794]
[1643750196869,0.21064034,2786.5,2785.7,2.56971021]
[1643750197161,0.21064034,2786.5,2785.7,0.24142934]
[1643750197361,0.21064034,2786.5,2785.8,0.28165247]
[1643750197559,0.21064034,2786.5,2785.9,0.517]
[1643750197760,0.21064034,2786.5,2786.0,0.1794]
[1643750197960,0.21064034,2786.5,2786.0,0.6964]
[1643750198193,0.21064034,2786.5,2786.0,0.79865247]
[1643750199400,0.21064034,2786.5,2786.1,0.92428454]
[1643750199598,0.21064034,2786.5,2786.2,0.517]
[1643750199800,0.21064034,2786.5,2786.3,0.1794]
[1643750199997,0.21064034,2786.5,2786.4,6.117]
[1643750200197,0.21064034,2786.5,2786.4,0.517]
[1643750200799,0.21064034,2786.5,2786.0,0.1794]
[1643750201198,0.21064034,2786.5,2785.8,0.1794]
[1643750201402,0.21064034,2786.5,2785.8,1.05660205]
[1643750201599,0.21064034,2786.5,2785.9,0.64367]
[1643750201799,0.21064034,2786.5,2785.9,0.74592247]
[1643750202048,0.21064034,2786.5,2786.0,2.24604331]
[1643750202242,0.21064034,2786.5,2786.1,0.517]
[1643750202441,0.21064034,2786.5,2786.2,2.00837138]
[1643750202841,0.21064034,2786.5,2786.1,0.517]
[1643750203041,0.21064034,2786.5,2786.2,1.96676852]
[1643750203242,0.21064034,2786.5,2786.2,1.96299093]
[1643750203444,0.21064034,2786.5,2786.2,2.03650793]
[1643750204546,0.21064034,2786.5,2786.1,0.517]
[1643750206103,0.21064034,2786.5,2786.1,2.51007692]
[1643750208003,0.21064034,2786.5,2786.1,2.52236809]
[1643750208203,0.21064034,2786.5,2786.1,0.517]
[1643750208403,0.20955207,2786.5,2786.1,0.517]
[1643750210054,0.20955207,2786.5,2786.0,0.28165247]
[1643750210254,0.20955207,2786.5,2786.0,0.10225247]
[1643750212957,0.20955207,2786.5,2785.8,2.18753323]
[1643750213610,0.20955207,2786.5,2785.8,0.1794]
[1643750213909,0.20955207,2786.5,2785.5,0.1794]
[1643750213910,1.69573628,2786.4,2785.5,0.1794]
[1643750214108,1.69573628,2786.4,2785.3,0.1794]
[1643750214109,1.69581628,2786.3,2785.3,0.1794]
[1643750214310,1.69573628,2786.2,2785.1,0.25]
[1643750214509,1.69573628,2786.2,2784.9,0.31759997]
[1643750214510,0.72830312,2785.6,2784.9,0.13819997]
[1643750214908,0.72830312,2785.6,2784.7,2.1797855]
[1643750215113,0.1794,2785.9,2784.7,0.1794]
[1643750215308,0.1794,2786.1,2784.6,0.1794]
[1643750215512,0.1794,2786.1,2784.6,0.6964]
[1643750215808,1.2113,2786.3,2784.6,0.6964]
[1643750215809,0.1794,2786.2,2784.7,2.23232323]
[1643750216009,1.5165449,2786.1,2784.8,0.1794]
[1643750216210,0.42198744,2785.9,2784.8,0.1794]
[1643750216409,0.1794,2785.8,2784.8,0.1794]
[1643750217250,0.90591819,2785.4,2784.8,0.1794]
[1643750218855,0.90591819,2785.4,2784.7,0.1794]
[1643750220458,0.1794,2785.8,2784.7,0.1794]
[1643750220695,0.17948,2786.1,2784.7,0.1794]
[1643750220696,0.1794,2786.0,2784.7,0.1794]
[1643750220900,0.1794,2786.0,2784.8,0.01870011]
[1643750221094,0.1794,2786.0,2784.7,0.1794]
[1643750221298,0.41734083,2785.9,2784.7,0.1794]
[1643750221496,0.1794,2785.8,2784.7,0.1794]
[1643750221696,0.73285313,2785.5,2784.7,0.6964]
[1643750221899,0.73285313,2785.5,2784.8,1.99195402]
[1643750222396,0.73285313,2785.5,2784.7,0.6964]
[1643750222696,0.73285313,2785.5,2784.8,1.94753666]
[1643750222899,0.73285313,2785.5,2784.7,0.517]
[1643750223305,0.73285313,2785.5,2784.8,1.97547169]
[1643750223506,0.73285313,2785.5,2784.7,0.517]
[1643750226552,0.73285313,2785.5,2784.8,1.95746691]
[1643750227353,0.73285313,2785.5,2784.7,0.517]
[1643750227964,0.73285313,2785.5,2784.8,1.97152619]
[1643750228808,0.73285313,2785.5,2784.7,0.517]
[1643750229207,0.1794,2785.8,2784.8,1.94760479]
[1643750229509,0.1794,2785.9,2784.9,0.517]
[1643750229706,0.17948,2786.2,2785.0,2.80536243]
[1643750229707,0.1794,2786.1,2785.0,2.80536243]
[1643750229917,0.17948,2786.2,2785.2,0.37489334]
[1643750229918,0.1794,2786.2,2785.2,0.37489334]
[1643750230111,0.1794,2786.8,2785.3,2.82307]
[1643750230310,0.20786311,2786.5,2785.7,0.01538917]
[1643750230514,0.20786311,2786.5,2785.8,0.517]
[1643750230711,0.20786311,2786.5,2785.9,2.02691195]
[1643750230911,0.20786311,2786.5,2786.0,0.6964]
[1643750232047,0.20786311,2786.5,2786.1,1.98869836]
[1643750232248,0.20786311,2786.5,2786.1,2.50569836]
[1643750235991,0.20786311,2786.5,2786.1,0.517]
[1643750238795,0.20786311,2786.5,2786.2,2.02255786]
[1643750239443,0.20786311,2786.5,2785.9,0.1794]
[1643750239444,0.20786311,2786.5,2786.3,0.517]
[1643750239643,0.20786311,2786.5,2786.4,5.78635483]
[1643750240043,0.20786311,2786.5,2786.4,3.717]
[1643750240646,0.20786311,2786.5,2786.4,0.517]
[1643750241946,0.20786311,2786.5,2786.4,3.767]
[1643750242146,0.20786311,2786.5,2786.4,3.717]
[1643750242547,0.20786311,2786.5,2786.4,0.467]
[1643750244697,0.20677144,2786.5,2786.4,0.467]
[1643750246941,0.20677144,2786.5,2786.4,3.667]
[1643750247442,0.20677144,2786.5,2786.4,0.467]
[1643750248845,0.20677144,2786.5,2786.4,3.017]
[1643750249046,0.20677144,2786.5,2786.4,3.14367]
[1643750249247,0.20677144,2786.5,2786.4,3.017]
[1643750249446,0.20677144,2786.5,2786.4,0.59367]
[1643750249849,0.20677144,2786.5,2786.4,3.99367]
[1643750250147,0.20677144,2786.5,2786.4,4.71884799]
[1643750250347,0.20677144,2786.5,2786.4,1.31884799]
[1643750250791,0.1794,2787.4,2786.5,6.8]
[1643750250997,3.82196904,2788.1,2786.6,2.47908748]
[1643750250998,1.51582547,2787.3,2786.6,2.47908748]
[1643750251193,1.164,2788.1,2786.6,2.47908748]
[1643750251194,0.1792,2787.8,2786.7,0.1792]
[1643750251392,0.66602041,2788.0,2786.8,0.53161825]
[1643750251393,1.51578922,2787.7,2786.8,0.53161825]
[1643750251593,1.51578922,2787.6,2786.8,0.517]
[1643750251791,1.51578922,2787.5,2786.8,0.517]
[1643750251990,1.51578922,2787.4,2786.8,0.517]
[1643750252190,0.1792,2787.7,2786.8,0.517]
[1643750252191,0.1792,2787.7,2786.8,0.52997176]
[1643750252492,1.51573201,2787.6,2786.8,0.517]
[1643750253296,0.1792,2787.7,2786.8,0.517]
[1643750253696,0.1792,2787.7,2786.9,0.12667]
[1643750253895,1.2041,2788.3,2787.0,0.517]
[1643750253896,1.51572176,2787.6,2787.0,0.517]
[1643750254095,0.1792,2788.2,2787.0,0.517]
[1643750254297,1.51572743,2788.1,2787.0,0.517]
[1643750254549,0.1792,2788.0,2787.0,0.517]
[1643750254747,1.51572743,2787.9,2787.0,0.517]
[1643750254949,0.1792,2787.8,2787.0,0.517]
[1643750255147,1.51572743,2787.7,2787.0,0.517]
[1643750255550,2.02089027,2788.4,2787.0,1.94268247]
[1643750255551,0.1792,2788.2,2787.0,1.94268247]
[1643750255749,1.2329,2788.6,2787.1,0.1792]
[1643750255750,1.51566405,2788.1,2787.1,0.1792]
[1643750255950,1.51566405,2788.0,2787.2,0.517]
[1643750256153,0.1792,2788.5,2787.2,0.517]
[1643750256449,0.6823394,2788.2,2787.2,0.64367]
[1643750256649,1.69474089,2788.1,2787.2,0.64367]
[1643750256851,0.1792,2788.1,2787.2,0.64367]
[1643750257249,0.6823394,2788.2,2787.2,0.64367]
[1643750257449,1.51551163,2788.1,2787.2,0.64367]
[1643750258049,1.51551163,2788.1,2787.2,0.517]
[1643750258307,0.6823394,2788.2,2787.2,2.39668783]
[1643750258508,0.68125198,2788.2,2787.2,2.39668783]
[1643750258908,0.1792,2788.3,2787.3,0.89667]
[1643750259118,1.5155045,2788.2,2787.4,0.6962]
[1643750259312,0.1792,2788.5,2787.4,0.6962]
[1643750259512,1.51549716,2788.4,2787.4,0.6962]
[1643750259713,1.51549716,2788.3,2787.4,0.6962]
[1643750259912,1.51549716,2788.2,2787.4,0.6962]
[1643750260110,1.0703299,2788.4,2787.5,0.12667]
[1643750260311,1.51550701,2788.3,2787.6,0.517]
[1643750261115,0.1792,2788.9,2787.6,1.54026]
[1643750261319,9.09712041,2789.1,2787.6,1.54026]
[1643750261320,1.51528693,2788.8,2787.7,0.1792]
[1643750261516,1.51528693,2788.7,2787.7,0.19588407]
[1643750261711,0.1792,2789.0,2787.8,0.517]
[1643750261938,1.51523705,2788.9,2787.9,0.1792]
[1643750262138,1.51523705,2788.9,2788.0,0.517]
[1643750264346,0.1792,2788.8,2788.0,0.517]
[1643750264746,0.1792,2788.9,2788.0,0.517]
[1643750264946,1.51526862,2788.8,2788.0,0.517]
[1643750268509,0.1792,2788.9,2788.1,2.0]
[1643750268713,0.1792,2789.1,2788.2,0.517]
[1643750268909,0.1792,2789.4,2788.3,0.12667]
[1643750269112,8.7898,2789.7,2788.4,0.71591473]
[1643750269113,0.1792,2789.6,2788.4,0.71591473]
[1643750269309,1.51496707,2789.5,2788.4,2.71591473]
[1643750269543,1.51496707,2789.5,2788.7,0.89625]
[1643750269744,1.51496707,2789.5,2788.8,0.517]
[1643750269946,1.51496707,2789.5,2788.7,0.30430615]
[1643750270144,1.51496707,2789.5,2788.8,0.517]
[1643750270346,1.46496707,2789.5,2788.8,0.517]
[1643750270544,0.92495045,2789.6,2788.8,0.517]
[1643750270545,0.1792,2789.6,2788.8,0.517]
[1643750270745,0.1792,2790.0,2788.9,2.28370177]
[1643750270946,0.1792,2790.0,2789.0,0.517]
[1643750271247,0.1792,2790.1,2789.1,2.19452569]
[1643750271444,0.1792,2790.1,2789.2,0.517]
[1643750271647,0.1792,2790.1,2789.3,1.9506079]
[1643750271648,0.84522041,2790.1,2789.3,1.9506079]
[1643750271849,0.84522041,2790.1,2789.4,0.517]
[1643750271850,0.1792,2790.1,2789.4,0.517]
[1643750272245,0.84522041,2790.2,2789.4,0.517]
[1643750273046,1.00185442,2790.1,2789.1,2.29356801]
[1643750273301,0.3588546,2789.2,2788.8,0.1792]
[1643750273700,0.2588546,2789.2,2788.8,0.1792]
[1643750274100,0.1792,2789.1,2788.8,0.1792]
[1643750274406,0.71943818,2789.0,2788.8,0.1792]
[1643750275000,4.0792,2788.9,2788.8,0.1792]
[1643750276205,6.8,2788.8,2787.7,0.1792]
[1643750276406,0.1792,2788.7,2787.7,0.1792]
[1643750276602,0.1792,2788.7,2787.4,1.3891]
[1643750276802,0.93507825,2788.3,2787.4,1.3891]
[1643750277044,0.3945962,2788.5,2787.4,1.3891]
[1643750277237,0.1792,2788.4,2787.5,1.9371708]
[1643750277836,0.1792,2788.7,2787.5,2.8338108]
[1643750278039,1.12699594,2788.7,2787.5,2.8338108]
[1643750279045,1.52337138,2788.7,2787.6,0.1792]
[1643750279846,1.12699594,2788.7,2787.6,0.1792]
[1643750280046,1.12699594,2788.7,2787.8,0.68979186]
[1643750280252,0.1792,2788.7,2787.9,2.15290961]
[1643750280448,0.1792,2789.1,2787.9,2.15290961]
[1643750280897,0.43004597,2788.9,2787.9,2.15290961]
[1643750281100,0.1792,2788.8,2787.9,2.15290961]
[1643750281499,0.1792,2788.8,2787.8,0.517]
[1643750282303,0.70057863,2788.4,2787.8,0.517]
[1643750282500,1.01964876,2788.4,2787.8,0.517]
[1643750282999,1.01964876,2788.4,2787.6,0.1792]
[1643750283401,0.17948,2788.8,2787.6,0.1792]
[1643750283599,0.17948,2788.8,2787.5,1.97392638]
[1643750283600,0.1792,2788.7,2787.5,3.04976638]
[1643750285064,0.8140212,2788.6,2787.5,3.81903268]
[1643750285263,0.1792,2788.5,2787.5,3.81903268]
[1643750285467,0.8140212,2788.6,2787.6,1.0]
[1643750285666,0.8140212,2788.6,2787.7,2.35532687]
[1643750286070,0.8140212,2788.6,2787.8,0.517]
[1643750286366,0.1792,2789.1,2787.9,2.09307535]
[1643750286570,0.1792,2789.1,2787.9,2.19521985]
[1643750286772,0.1792,2789.1,2788.0,0.517]
[1643750286967,0.1792,2789.1,2788.1,2.30991735]
[1643750287171,0.1792,2789.1,2788.2,0.517]
[1643750287373,0.1792,2789.1,2788.3,2.03778838]
[1643750287569,0.1792,2789.1,2788.3,2.55478838]
[1643750287970,0.1792,2789.1,2788.3,0.517]
[1643750288397,0.39090516,2788.9,2788.3,0.517]
[1643750288597,0.1792,2789.1,2788.3,0.517]
[1643750289495,0.72279109,2788.7,2788.3,0.517]
[1643750289901,0.72279109,2788.7,2788.0,1.9851711]
[1643750290298,0.72279109,2788.7,2787.9,1.7506]
[1643750290495,0.35868,2789.3,2788.0,1.95910493]
[1643750290695,0.1792,2789.3,2788.0,1.95910493]
[1643750291097,1.51521484,2789.2,2788.0,1.95910493]
[1643750291303,1.85235443,2789.2,2788.0,1.95910493]
[1643750291498,1.69441484,2789.1,2788.0,1.95910493]
[1643750291697,0.86489317,2788.8,2788.0,1.90910493]
[1643750291944,0.86489317,2788.8,2788.0,2.08830493]
[1643750292146,0.86489317,2788.8,2788.0,0.1792]
[1643750292147,1.51523037,2788.7,2788.0,0.1792]
[1643750292345,1.51523037,2788.7,2788.0,2.15426661]
[1643750292746,0.86489317,2788.8,2788.0,2.15426661]
[1643750292946,1.51523306,2788.7,2788.0,2.15426661]
[1643750293349,0.1792,2789.3,2788.0,2.15426661]
[1643750293549,1.51519106,2789.2,2788.1,0.517]
[1643750293748,1.51519106,2789.2,2788.2,2.40508185]
[1643750293950,1.51519106,2789.2,2788.3,0.517]
[1643750294347,2.19863746,2789.2,2788.3,0.517]
[1643750294549,1.51519106,2789.1,2788.3,0.517]
[1643750295991,1.69439106,2789.1,2788.3,0.517]
[1643750296196,1.51519106,2789.0,2788.3,0.517]
[1643750296592,1.51519106,2789.0,2788.3,3.14117314]
[1643750296798,1.51519106,2789.0,2788.4,1.0]
[1643750296995,1.51519106,2789.0,2788.5,3.84993661]
[1643750297192,0.1792,2789.5,2788.5,3.84993661]
[1643750297394,1.51496803,2789.4,2788.5,3.84993661]
[1643750297592,0.1792,2789.6,2788.5,5.02733661]
[1643750297593,1.51496803,2789.5,2788.5,5.02733661]
[1643750297798,1.51496803,2789.4,2788.5,5.02733661]
[1643750297993,2.33317533,2789.3,2788.5,5.02733661]
[1643750298192,1.51496803,2789.2,2788.5,5.02733661]
[1643750298597,1.51496803,2789.2,2788.5,3.84993661]
[1643750298999,1.51496803,2789.2,2788.5,4.74615751]
[1643750301250,1.51496803,2789.1,2788.5,4.74615751]
[1643750301547,0.84299611,2789.8,2788.8,0.89625]
[1643750301747,1.51491181,2789.7,2788.9,2.73655403]
[1643750302350,0.92590125,2789.3,2788.9,2.73655403]
[1643750302550,1.51491181,2789.2,2788.9,2.73655403]
[1643750302751,1.51491181,2789.2,2788.9,2.45615547]
[1643750303191,1.51491181,2789.2,2788.9,2.44877499]
[1643750303398,1.51491181,2789.2,2788.9,0.517]
[1643750303799,1.51491181,2789.1,2788.9,0.517]
[1643750303999,0.4275186,2789.6,2788.9,0.517]
[1643750304201,1.51494703,2789.5,2788.9,2.4692613]
[1643750304502,1.51494703,2789.5,2788.9,0.517]
[1643750304700,0.83503335,2789.3,2788.9,0.517]
[1643750304901,1.51494703,2789.2,2788.9,0.517]
[1643750307050,1.51494703,2789.2,2788.9,0.467]
[1643750309254,0.36127847,2789.1,2788.9,0.467]
[1643750309458,0.36127847,2789.1,2788.1,4.19327]
[1643750309459,1.69414703,2789.0,2788.1,0.67046304]
[1643750309664,1.69414703,2789.0,2787.9,2.0]
[1643750309665,1.51494703,2788.9,2787.9,2.0]
[1643750309858,0.1792,2788.8,2787.7,2.6962]
[1643750310056,1.51494703,2788.7,2787.7,2.6962]
[1643750310258,0.90351609,2788.5,2787.7,2.6962]
[1643750311102,0.3,2788.3,2787.7,0.1792]
[1643750311300,0.3,2788.3,2787.3,3.39428907]
[1643750311301,1.51537416,2788.2,2787.4,0.1792]
[1643750311701,0.71239052,2787.9,2787.4,0.1792]
[1643750312205,0.1792,2788.4,2787.4,1.07593]
[1643750312500,1.51534924,2788.3,2787.5,2.0500394]
[1643750312699,0.1792,2788.2,2787.5,2.0500394]
[1643750313103,0.36483623,2788.1,2787.5,2.0500394]
[1643750313305,0.86818791,2787.9,2787.4,1.07593]
[1643750313507,0.86818791,2787.9,2787.4,0.1792]
[1643750314558,0.86818791,2787.9,2787.3,0.6962]
[1643750314759,1.16818791,2787.9,2787.3,0.1792]
[1643750315862,1.07604,2788.5,2787.2,2.13527333]
[1643750316059,1.51541176,2788.4,2787.3,0.89675]
[1643750316260,0.1792,2788.3,2787.4,2.02268321]
[1643750316461,0.4792,2788.3,2787.4,2.53968321]
[1643750316660,1.51540098,2788.2,2787.4,0.517]
[1643750316861,3.8601734,2788.1,2787.1,0.1792]
[1643750317064,1.51540098,2788.0,2786.9,0.1792]
[1643750317262,2.76874248,2787.9,2786.8,0.45559994]
[1643750317462,1.51540098,2787.8,2786.8,0.27639994]
[1643750317662,0.38380798,2787.3,2786.7,0.1792]
[1643750317863,0.68334157,2787.2,2786.7,0.1792]
[1643750318319,0.4792,2787.7,2786.7,0.1792]
[1643750318620,0.1792,2787.7,2786.8,0.87728907]
[1643750318814,0.1792,2787.9,2786.8,0.87728907]
[1643750319016,0.33444425,2787.5,2786.7,1.57348907]
[1643750319414,0.74890582,2787.3,2786.7,1.57348907]
[1643750319614,0.74890582,2787.3,2786.7,0.6962]
[1643750320015,0.74890582,2787.3,2786.7,1.59316]
[1643750320216,0.1792,2787.9,2786.7,1.59316]
[1643750320421,1.51566847,2787.8,2786.8,1.95505408]
[1643750320619,0.1792,2787.7,2786.7,1.41396]
[1643750321017,0.1792,2787.7,2786.8,1.9494382]
[1643750321222,0.76567933,2787.2,2786.8,1.9494382]
[1643750321517,0.76567933,2787.2,2786.7,0.517]
[1643750322351,1.06567933,2787.2,2786.7,0.517]
[1643750323860,0.76567933,2787.2,2786.7,0.517]
[1643750325799,1.06567933,2787.2,2786.7,0.517]
[1643750326903,1.06567933,2787.2,2786.7,1.41396]
[1643750327607,0.1794,2787.5,2786.8,1.99466463]
[1643750327810,2.69084,2788.6,2787.0,0.89679]
[1643750327811,0.1792,2787.8,2787.0,0.89679]
[1643750328005,0.1792,2788.0,2787.1,2.90231905]
[1643750328204,0.4792,2788.3,2787.1,2.90231905]
[1643750328404,1.51550639,2788.2,2787.1,2.90231905]
[1643750328605,0.1792,2788.1,2787.1,2.90231905]
[1643750329009,0.90851864,2787.8,2787.1,2.90231905]
[1643750329205,0.90851864,2787.8,2787.3,0.89673]
[1643750329455,0.1792,2788.1,2787.4,1.94998083]
[1643750329657,9.39785,2788.8,2787.5,0.52993034]
[1643750329658,0.1792,2788.5,2787.5,0.52993034]
[1643750329857,0.1792,2788.7,2787.6,3.18407155]
[1643750330058,8.3667,2789.2,2787.7,0.6962]
[1643750330059,1.51529835,2788.6,2787.7,0.6962]
[1643750330255,0.1792,2789.1,2787.7,0.6962]
[1643750330256,0.42865734,2788.3,2787.8,1.94198473]
[1643750330460,0.94036828,2788.0,2787.8,0.517]
[1643750331763,0.93918909,2788.0,2787.8,0.517]
[1643750332360,0.1792,2788.7,2787.8,0.517]
[1643750332565,1.51541621,2788.6,2787.8,0.517]
[1643750332761,1.07596,2788.5,2787.8,0.517]
[1643750332962,1.46541621,2788.4,2787.8,0.517]
[1643750333209,0.4792,2788.3,2787.8,0.517]
[1643750333618,1.15735154,2787.9,2787.8,0.517]
[1643750333812,0.83209045,2787.9,2787.8,0.517]
[1643750336816,0.83209045,2787.9,2787.1,0.1792]
[1643750337057,2.05647382,2787.8,2787.1,0.1792]
[1643750337253,2.05647382,2787.8,2786.9,1.2208]
[1643750337254,2.23567382,2787.8,2786.9,1.2208]
[1643750337655,2.68096977,2788.9,2787.1,6.8]
[1643750337859,5.26790659,2789.4,2788.4,1.82506893]
[1643750337860,1.37062886,2789.4,2788.4,1.82506893]
[1643750338064,2.07863527,2790.5,2787.3,7.47]
[1643750338065,0.67638774,2790.1,2789.3,6.47666689]
[1643750338259,0.67638774,2790.5,2789.5,0.25]
[1643750338461,0.67476652,2790.6,2789.7,6.464]
[1643750338759,0.85820193,2790.4,2789.8,0.517]
[1643750338958,0.43659929,2790.2,2789.8,0.517]
[1643750340059,0.1792,2790.1,2789.8,0.517]
[1643750340559,0.1792,2790.7,2789.8,0.517]
[1643750340796,1.17919999,2790.7,2789.8,0.517]
[1643750341196,0.93279046,2790.1,2789.8,0.517]
[1643750341397,0.56553543,2790.0,2789.8,0.517]
[1643750341597,0.38633543,2790.0,2789.8,0.517]
[1643750341997,1.23279046,2790.1,2789.8,0.517]
[1643750342402,0.1792,2790.0,2789.8,0.517]
[1643750342998,0.51216587,2790.0,2789.8,0.517]
[1643750343802,0.33296587,2790.0,2789.8,0.517]
[1643750344951,0.51216587,2790.0,2789.8,0.517]
[1643750345550,0.1792,2790.0,2789.8,0.517]
[1643750345951,1.23279046,2790.1,2789.8,0.517]
[1643750346552,0.40708485,2790.0,2789.8,0.517]
[1643750346755,0.58628485,2790.0,2789.5,0.25]
[1643750346955,21.08,2789.9,2789.5,0.25]
[1643750347153,21.38,2789.9,2789.5,0.25]
[1643750347557,0.78659797,2789.6,2789.5,0.25]
[1643750349405,0.3,2789.7,2789.5,0.25]
[1643750349807,21.78708485,2790.0,2789.5,0.25]
[1643750350212,22.08708485,2790.0,2789.5,0.25]
[1643750350807,21.08,2789.7,2789.5,0.25]
[1643750351208,22.19964327,2789.9,2789.5,0.25]
[1643750352242,1.11964327,2789.9,2789.5,0.25]
[1643750352643,0.81964327,2789.9,2789.5,0.25]
[1643750354149,1.11964327,2789.9,2789.5,0.25]
[1643750355354,0.3,2789.9,2789.5,0.25]
[1643750355551,0.40708485,2790.0,2789.5,0.24847738]
[1643750355795,21.48708485,2790.0,2789.5,0.24847738]
[1643750355994,0.40708485,2790.0,2789.5,0.24847738]
[1643750356201,0.1792,2790.4,2789.5,0.24847738]
[1643750356393,0.89320084,2790.1,2789.5,0.24847738]
[1643750358004,21.2592,2790.4,2789.5,0.24847738]
[1643750358203,22.55340747,2790.3,2789.5,0.24847738]
[1643750358401,1.65260747,2790.2,2789.5,0.24847738]
[1643750358601,0.1792,2790.2,2789.5,0.24847738]
[1643750363701,0.1792,2790.2,2789.5,0.76547738]
[1643750363904,0.40460455,2789.9,2789.5,0.76547738]
[1643750364304,21.08,2789.8,2789.5,0.24847738]
[1643750364604,21.08,2789.8,2789.2,0.1792]
[1643750364605,0.40076459,2789.3,2789.2,0.1792]
[1643750364806,0.1792,2789.7,2789.2,0.1792]
[1643750365405,21.2592,2790.1,2789.2,0.1792]
[1643750365605,21.08,2789.9,2789.2,0.1792]
[1643750365808,3.79512781,2789.3,2789.2,0.1792]
[1643750366004,0.69512781,2789.3,2789.2,0.1792]
[1643750366607,28.57512781,2789.3,2789.2,0.1792]
[1643750367460,30.0460437,2789.3,2789.2,0.1792]
[1643750368055,28.57512781,2789.3,2789.2,0.1792]
[1643750368959,30.04688348,2789.3,2789.2,0.1792]